[Event "Early-Titled-Tuesday-Blitz-October-24-2023"]
[Site "Chess.com"]
[Date "2023.10.24"]
[Round "9"]
[White "Xqswdc"]
[Black "Fan_Of_Chucky"]
[Result "0-1"]
[WhiteElo "2347"]
[BlackElo "2529"]
[TimeControl "180+1"]
[EndTime "9:44:50 PDT"]
[Termination "Fan_Of_Chucky won by checkmate"]

1. e4 {[%clk 0:03:00.9]} 1... c5 {[%clk 0:02:59]} 2. Nf3 {[%clk 0:03:00.8]} 2...
e6 {[%clk 0:02:58.5]} 3. b3 {[%clk 0:03:00.8]} 3... d5 {[%clk 0:02:58.1]} 4.
exd5 {[%clk 0:02:59.8]} 4... exd5 {[%clk 0:02:59]} 5. Bb5+ {[%clk 0:02:56.5]}
5... Bd7 {[%clk 0:02:57.9]} 6. Qe2+ {[%clk 0:02:52.5]} 6... Qe7 {[%clk
0:02:53.1]} 7. O-O {[%clk 0:02:48.1]} 7... Qxe2 {[%clk 0:02:47.2]} 8. Bxe2
{[%clk 0:02:48.4]} 8... Be7 {[%clk 0:02:45.9]} 9. Nc3 {[%clk 0:02:48.1]} 9...
Nf6 {[%clk 0:02:44.8]} 10. Ne5 {[%clk 0:02:42.7]} 10... O-O {[%clk 0:02:27.9]}
11. Nxd7 {[%clk 0:02:42.7]} 11... Nbxd7 {[%clk 0:02:28.8]} 12. Bb2 {[%clk
0:02:40.1]} 12... a6 {[%clk 0:02:28.4]} 13. Rfe1 {[%clk 0:02:40]} 13... Rfe8
{[%clk 0:02:19.3]} 14. Bf3 {[%clk 0:02:40.2]} 14... d4 {[%clk 0:02:15.7]} 15.
Nd5 {[%clk 0:02:31.8]} 15... Nxd5 {[%clk 0:02:10.5]} 16. Bxd5 {[%clk 0:02:32.7]}
16... Rab8 {[%clk 0:01:57.7]} 17. b4 {[%clk 0:02:32.6]} 17... b6 {[%clk
0:01:52.5]} 18. Bc6 {[%clk 0:02:29.3]} 18... Rbd8 {[%clk 0:01:47.8]} 19. bxc5
{[%clk 0:02:28.3]} 19... bxc5 {[%clk 0:01:42.2]} 20. Ba3 {[%clk 0:02:28.4]}
20... Kf8 {[%clk 0:01:36.1]} 21. Rab1 {[%clk 0:02:27.6]} 21... Bd6 {[%clk
0:01:33.3]} 22. Rxe8+ {[%clk 0:02:22.7]} 22... Kxe8 {[%clk 0:01:34.2]} 23. Re1+
{[%clk 0:02:16.1]} 23... Kf8 {[%clk 0:01:32.6]} 24. Rb1 {[%clk 0:02:06.8]} 24...
Rb8 {[%clk 0:01:28.1]} 25. Rxb8+ {[%clk 0:01:57.5]} 25... Nxb8 {[%clk 0:01:29]}
26. Bb7 {[%clk 0:01:58.1]} 26... Ke7 {[%clk 0:01:27.2]} 27. Kf1 {[%clk
0:01:57.3]} 27... f6 {[%clk 0:01:22.2]} 28. h3 {[%clk 0:01:57.4]} 28... c4
{[%clk 0:01:21.3]} 29. c3 {[%clk 0:01:51.6]} 29... Bxa3 {[%clk 0:01:20.3]} 30.
cxd4 {[%clk 0:01:50.7]} 30... Bb2 {[%clk 0:01:17.1]} 31. Bd5 {[%clk 0:01:44.2]}
31... Bxd4 {[%clk 0:01:14.2]} 32. Bxc4 {[%clk 0:01:44.8]} 32... Kd6 {[%clk
0:01:14.8]} 33. Ke2 {[%clk 0:01:41.9]} 33... a5 {[%clk 0:01:13.8]} 34. f4 {[%clk
0:01:40.2]} 34... Nd7 {[%clk 0:01:10.5]} 35. g4 {[%clk 0:01:39.4]} 35... h6
{[%clk 0:01:04.9]} 36. Kd3 {[%clk 0:01:37]} 36... Bg1 {[%clk 0:00:55.7]} 37. Ke4
{[%clk 0:01:36.7]} 37... g5 {[%clk 0:00:49]} 38. fxg5 {[%clk 0:01:34.8]} 38...
hxg5 {[%clk 0:00:47.1]} 39. Kf5 {[%clk 0:01:31.1]} 39... Bd4 {[%clk 0:00:45.6]}
40. d3 {[%clk 0:01:23.3]} 40... Ne5 {[%clk 0:00:40.7]} 41. Bb5 {[%clk
0:01:20.8]} 41... Nf3 {[%clk 0:00:37.8]} 42. Ke4 {[%clk 0:01:11.9]} 42... Bg1
{[%clk 0:00:12.9]} 43. Kxf3 {[%clk 0:01:10.5]} 43... Ke5 {[%clk 0:00:13.8]} 44.
Ke2 {[%clk 0:01:07.3]} 44... Kd4 {[%clk 0:00:13.3]} 45. Kd2 {[%clk 0:01:06]}
45... Bf2 {[%clk 0:00:13.1]} 46. Bd7 {[%clk 0:01:04.9]} 46... Bg3 {[%clk
0:00:13.2]} 47. Bf5 {[%clk 0:01:04.9]} 47... Bh4 {[%clk 0:00:13.4]} 48. Kc2
{[%clk 0:01:05.3]} 48... Bg3 {[%clk 0:00:14.1]} 49. Kb3 {[%clk 0:01:05.7]} 49...
Bh4 {[%clk 0:00:14.9]} 50. Ka4 {[%clk 0:01:06.2]} 50... Be1 {[%clk 0:00:15.6]}
51. Kb5 {[%clk 0:01:05.8]} 51... Bd2 {[%clk 0:00:15.9]} 52. Kc6 {[%clk 0:01:06]}
52... Be1 {[%clk 0:00:16.5]} 53. Kd6 {[%clk 0:01:06.3]} 53... Bg3+ {[%clk
0:00:14.9]} 54. Ke6 {[%clk 0:01:04.2]} 54... Be5 {[%clk 0:00:15.4]} 55. a4
{[%clk 0:01:05.1]} 55... Ke3 {[%clk 0:00:14.9]} 56. Kd5 {[%clk 0:01:05.1]} 56...
Bd4 {[%clk 0:00:15.3]} 57. Be4 {[%clk 0:01:04.6]} 57... Be5 {[%clk 0:00:15.2]}
58. Ke6 {[%clk 0:01:04]} 58... Kd4 {[%clk 0:00:13.2]} 59. Kd7 {[%clk 0:01:03]}
59... Ke3 {[%clk 0:00:13]} 60. Kc6 {[%clk 0:01:03.3]} 60... Kd4 {[%clk
0:00:13.1]} 61. Kb5 {[%clk 0:01:03.6]} 61... Bc7 {[%clk 0:00:13.1]} 62. Kc6
{[%clk 0:01:01.7]} 62... Be5 {[%clk 0:00:12.3]} 63. Kd7 {[%clk 0:01:02.6]} 63...
Ke3 {[%clk 0:00:11.9]} 64. Ke6 {[%clk 0:01:03.1]} 64... Kd4 {[%clk 0:00:12.2]}
65. Kf5 {[%clk 0:01:03.6]} 65... Ke3 {[%clk 0:00:12.2]} 66. h4 {[%clk
0:01:02.2]} 66... gxh4 {[%clk 0:00:11]} 67. g5 {[%clk 0:01:03.1]} 67... fxg5
{[%clk 0:00:06.5]} 68. Kxe5 {[%clk 0:01:04]} 68... g4 {[%clk 0:00:06.2]} 69. d4
{[%clk 0:01:04.6]} 69... g3 {[%clk 0:00:05.1]} 70. d5 {[%clk 0:01:05.2]} 70...
h3 {[%clk 0:00:04.6]} 71. d6 {[%clk 0:01:04.2]} 71... g2 {[%clk 0:00:05]} 72. d7
{[%clk 0:00:51.7]} 72... g1=Q {[%clk 0:00:04.8]} 73. d8=Q {[%clk 0:00:52.6]}
73... Qg7+ {[%clk 0:00:04.6]} 74. Kd6 {[%clk 0:00:27]} 74... Qd4+ {[%clk
0:00:03.2]} 75. Bd5 {[%clk 0:00:27]} 75... Qb4+ {[%clk 0:00:02.7]} 76. Ke6
{[%clk 0:00:23.6]} 76... Qg4+ {[%clk 0:00:02.2]} 77. Kd6 {[%clk 0:00:22.2]}
77... Qb4+ {[%clk 0:00:02.5]} 78. Kd7 {[%clk 0:00:20.3]} 78... Qxa4+ {[%clk
0:00:02.3]} 79. Bc6 {[%clk 0:00:20.4]} 79... Qd4+ {[%clk 0:00:01.4]} 80. Ke7
{[%clk 0:00:12.3]} 80... Qxd8+ {[%clk 0:00:02.3]} 81. Kxd8 {[%clk 0:00:12.4]}
81... h2 {[%clk 0:00:01.5]} 82. Kc7 {[%clk 0:00:12.8]} 82... a4 {[%clk 0:00:02]}
83. Kb6 {[%clk 0:00:10.8]} 83... a3 {[%clk 0:00:02.3]} 84. Bd5 {[%clk
0:00:10.7]} 84... a2 {[%clk 0:00:03.1]} 85. Bxa2 {[%clk 0:00:11.1]} 85... h1=Q
{[%clk 0:00:03.7]} 86. Bc4 {[%clk 0:00:11.2]} 86... Qe1 {[%clk 0:00:04.6]} 87.
Bb5 {[%clk 0:00:12.1]} 87... Qd2 {[%clk 0:00:05.5]} 88. Bc6 {[%clk 0:00:13]}
88... Qd4+ {[%clk 0:00:06]} 89. Kc7 {[%clk 0:00:13.9]} 89... Kf4 {[%clk
0:00:06.8]} 90. Bd7 {[%clk 0:00:14.8]} 90... Ke5 {[%clk 0:00:07.7]} 91. Kd8
{[%clk 0:00:15.7]} 91... Qd6 {[%clk 0:00:07.5]} 92. Kc8 {[%clk 0:00:14.2]} 92...
Kf6 {[%clk 0:00:08]} 93. Kd8 {[%clk 0:00:12.5]} 93... Qe7+ {[%clk 0:00:06.8]}
94. Kc8 {[%clk 0:00:12.7]} 94... Ke5 {[%clk 0:00:07.4]} 95. Bc6 {[%clk 0:00:13]}
95... Kd6 {[%clk 0:00:07.3]} 96. Bd7 {[%clk 0:00:08.7]} 96... Qxd7+ {[%clk
0:00:05.9]} 97. Kb8 {[%clk 0:00:09.6]} 97... Kc6 {[%clk 0:00:06]} 98. Ka8 {[%clk
0:00:10.5]} 98... Qb7# {[%clk 0:00:06.6]} 0-1

[Event "Early-Titled-Tuesday-Blitz-October-24-2023"]
[Site "Chess.com"]
[Date "2023.10.24"]
[Round "9"]
[White "mind1mover"]
[Black "the_chess_child"]
[Result "1/2-1/2"]
[WhiteElo "2811"]
[BlackElo "2942"]
[TimeControl "180+1"]
[EndTime "9:45:20 PDT"]
[Termination "Game drawn - insufficient material"]

1. Nf3 {[%clk 0:03:00.9]} 1... Nf6 {[%clk 0:02:59.3]} 2. b3 {[%clk 0:03:01.1]}
2... g6 {[%clk 0:02:59.7]} 3. Bb2 {[%clk 0:03:01.6]} 3... Bg7 {[%clk 0:03:00.4]}
4. g3 {[%clk 0:03:02.3]} 4... O-O {[%clk 0:03:01]} 5. Bg2 {[%clk 0:03:02.9]}
5... d6 {[%clk 0:03:01.3]} 6. d4 {[%clk 0:03:03.1]} 6... c5 {[%clk 0:03:01.4]}
7. O-O {[%clk 0:03:01.9]} 7... cxd4 {[%clk 0:02:59.6]} 8. Nxd4 {[%clk
0:03:02.8]} 8... d5 {[%clk 0:03:00]} 9. c4 {[%clk 0:03:00.5]} 9... e5 {[%clk
0:02:59.7]} 10. Nf3 {[%clk 0:03:01]} 10... e4 {[%clk 0:02:42.6]} 11. Nd4 {[%clk
0:03:01]} 11... dxc4 {[%clk 0:02:42]} 12. bxc4 {[%clk 0:03:01.9]} 12... Qb6
{[%clk 0:02:33.5]} 13. Nb3 {[%clk 0:02:53.3]} 13... Nc6 {[%clk 0:02:24.2]} 14.
Nc3 {[%clk 0:02:40.1]} 14... Bf5 {[%clk 0:02:18.8]} 15. c5 {[%clk 0:02:34]}
15... Qc7 {[%clk 0:02:15.8]} 16. Nb5 {[%clk 0:02:31.8]} 16... Qe7 {[%clk
0:02:13.8]} 17. Qd6 {[%clk 0:02:29.5]} 17... Rfd8 {[%clk 0:01:46.6]} 18. Qxe7
{[%clk 0:02:20.5]} 18... Nxe7 {[%clk 0:01:47.5]} 19. Rad1 {[%clk 0:02:08.1]}
19... b6 {[%clk 0:01:32.1]} 20. Nd6 {[%clk 0:01:59.9]} 20... Bg4 {[%clk
0:01:19.6]} 21. f3 {[%clk 0:01:20.3]} 21... exf3 {[%clk 0:01:16.2]} 22. exf3
{[%clk 0:01:21.2]} 22... Be6 {[%clk 0:01:16.8]} 23. Bxf6 {[%clk 0:00:54.1]}
23... Bxf6 {[%clk 0:01:16.4]} 24. f4 {[%clk 0:00:55]} 24... bxc5 {[%clk
0:00:22.2]} 25. Bxa8 {[%clk 0:00:53.3]} 25... Bxb3 {[%clk 0:00:20.5]} 26. axb3
{[%clk 0:00:45.8]} 26... Bd4+ {[%clk 0:00:19.9]} 27. Kg2 {[%clk 0:00:30.8]}
27... Rxd6 {[%clk 0:00:19.5]} 28. Be4 {[%clk 0:00:31.2]} 28... Rb6 {[%clk
0:00:19.6]} 29. Rb1 {[%clk 0:00:24.9]} 29... Kg7 {[%clk 0:00:18.1]} 30. Rfd1
{[%clk 0:00:24.2]} 30... f5 {[%clk 0:00:17.9]} 31. Bf3 {[%clk 0:00:24.5]} 31...
Kf6 {[%clk 0:00:18]} 32. b4 {[%clk 0:00:23.7]} 32... Kf7 {[%clk 0:00:13.6]} 33.
bxc5 {[%clk 0:00:20.6]} 33... Bxc5 {[%clk 0:00:14.5]} 34. Rxb6 {[%clk
0:00:19.1]} 34... axb6 {[%clk 0:00:15.4]} 35. Rd8 {[%clk 0:00:12]} 35... Ke6
{[%clk 0:00:14.7]} 36. Rh8 {[%clk 0:00:11.1]} 36... h5 {[%clk 0:00:15]} 37. Kf1
{[%clk 0:00:08.7]} 37... Kf7 {[%clk 0:00:15.2]} 38. Rb8 {[%clk 0:00:07.7]} 38...
Ke6 {[%clk 0:00:15.3]} 39. Ke2 {[%clk 0:00:06.5]} 39... Kf7 {[%clk 0:00:15.6]}
40. h3 {[%clk 0:00:03.5]} 40... Kf6 {[%clk 0:00:13.8]} 41. Rb7 {[%clk
0:00:02.5]} 41... Kf7 {[%clk 0:00:13.4]} 42. Kf1 {[%clk 0:00:01.8]} 42... Ke6
{[%clk 0:00:13.6]} 43. Be2 {[%clk 0:00:02]} 43... Nc6 {[%clk 0:00:12.8]} 44.
Bc4+ {[%clk 0:00:01.5]} 44... Kd6 {[%clk 0:00:13.3]} 45. Rg7 {[%clk 0:00:01.6]}
45... Ne7 {[%clk 0:00:13.2]} 46. Bf7 {[%clk 0:00:01.4]} 46... Bd4 {[%clk
0:00:12.8]} 47. Rh7 {[%clk 0:00:01.9]} 47... b5 {[%clk 0:00:12.7]} 48. Bb3
{[%clk 0:00:01.7]} 48... b4 {[%clk 0:00:12.9]} 49. Ke2 {[%clk 0:00:02.4]} 49...
Bc3 {[%clk 0:00:13]} 50. Rf7 {[%clk 0:00:01.8]} 50... Bd4 {[%clk 0:00:12.1]} 51.
Kd3 {[%clk 0:00:02.3]} 51... Bf2 {[%clk 0:00:11.9]} 52. Ke2 {[%clk 0:00:01.7]}
52... Bxg3 {[%clk 0:00:11.7]} 53. Kf3 {[%clk 0:00:02.3]} 53... Be1 {[%clk
0:00:12]} 54. Rf6+ {[%clk 0:00:02.8]} 54... Kd7 {[%clk 0:00:11.8]} 55. Ba4+
{[%clk 0:00:03]} 55... Kc7 {[%clk 0:00:12.1]} 56. Re6 {[%clk 0:00:03.4]} 56...
Nd5 {[%clk 0:00:06.4]} 57. Rxe1 {[%clk 0:00:03.3]} 57... Kd6 {[%clk 0:00:07.3]}
58. Rd1 {[%clk 0:00:02.8]} 58... Kc5 {[%clk 0:00:07.7]} 59. Bb3 {[%clk 0:00:03]}
59... Nc3 {[%clk 0:00:08.2]} 60. Rd8 {[%clk 0:00:03.3]} 60... Ne4 {[%clk
0:00:08.7]} 61. Rc8+ {[%clk 0:00:02.9]} 61... Kd4 {[%clk 0:00:08.8]} 62. Rc4+
{[%clk 0:00:02.8]} 62... Kd3 {[%clk 0:00:08.8]} 63. Rxb4 {[%clk 0:00:02.6]}
63... Kc3 {[%clk 0:00:09.3]} 64. Rb6 {[%clk 0:00:01.6]} 64... Nd2+ {[%clk
0:00:09.7]} 65. Kg3 {[%clk 0:00:02.2]} 65... Nxb3 {[%clk 0:00:09.8]} 66. Rxg6
{[%clk 0:00:02.7]} 66... Nd4 {[%clk 0:00:09.5]} 67. Rg5 {[%clk 0:00:01.7]} 67...
h4+ {[%clk 0:00:07.6]} 68. Kxh4 {[%clk 0:00:01.5]} 68... Kd3 {[%clk 0:00:08.1]}
69. Kh5 {[%clk 0:00:01.9]} 69... Ke4 {[%clk 0:00:08.4]} 70. Kg6 {[%clk
0:00:02.3]} 70... Kxf4 {[%clk 0:00:08.5]} 71. Rg1 {[%clk 0:00:02.5]} 71... Ke3
{[%clk 0:00:07.4]} 72. h4 {[%clk 0:00:02.4]} 72... f4 {[%clk 0:00:07.8]} 73. h5
{[%clk 0:00:02.7]} 73... f3 {[%clk 0:00:08.4]} 74. h6 {[%clk 0:00:03.3]} 74...
f2 {[%clk 0:00:09]} 75. Rh1 {[%clk 0:00:03.1]} 75... Nf3 {[%clk 0:00:09]} 76.
Ra1 {[%clk 0:00:01.6]} 76... Ne1 {[%clk 0:00:08.9]} 77. Ra3+ {[%clk 0:00:02.3]}
77... Ke4 {[%clk 0:00:08.8]} 78. Ra4+ {[%clk 0:00:02.4]} 78... Kf3 {[%clk
0:00:08.9]} 79. Ra8 {[%clk 0:00:01.8]} 79... Kg3 {[%clk 0:00:09]} 80. Rf8 {[%clk
0:00:01.8]} 80... Nf3 {[%clk 0:00:09.3]} 81. h7 {[%clk 0:00:02.4]} 81... f1=Q
{[%clk 0:00:09.6]} 82. h8=Q {[%clk 0:00:01.5]} 82... Qd3+ {[%clk 0:00:10.1]} 83.
Kg7 {[%clk 0:00:01.9]} 83... Qd4+ {[%clk 0:00:10.1]} 84. Rf6 {[%clk 0:00:02.1]}
84... Ne5 {[%clk 0:00:09.1]} 85. Qb8 {[%clk 0:00:01.4]} 85... Qg4+ {[%clk
0:00:08.7]} 86. Kf8 {[%clk 0:00:01.5]} 86... Qd4 {[%clk 0:00:07.4]} 87. Re6
{[%clk 0:00:01.7]} 87... Kf4 {[%clk 0:00:07.2]} 88. Ke7 {[%clk 0:00:01.4]} 88...
Kf5 {[%clk 0:00:06.4]} 89. Qf8+ {[%clk 0:00:01.3]} 89... Ke4 {[%clk 0:00:06.8]}
90. Rd6 {[%clk 0:00:01.4]} 90... Qc5 {[%clk 0:00:05]} 91. Qf6 {[%clk 0:00:01.3]}
91... Qc7+ {[%clk 0:00:04.4]} 92. Ke8 {[%clk 0:00:01.9]} 92... Qc8+ {[%clk
0:00:04.1]} 93. Qd8 {[%clk 0:00:02.3]} 93... Qf5 {[%clk 0:00:03.5]} 94. Qa8+
{[%clk 0:00:02.4]} 94... Kf4 {[%clk 0:00:03.7]} 95. Qa4+ {[%clk 0:00:02.5]}
95... Kg5 {[%clk 0:00:04]} 96. Kd8 {[%clk 0:00:02.2]} 96... Qf8+ {[%clk
0:00:04]} 97. Kc7 {[%clk 0:00:02.3]} 97... Qe7+ {[%clk 0:00:04.6]} 98. Rd7
{[%clk 0:00:03]} 98... Nxd7 {[%clk 0:00:05]} 99. Qxd7 {[%clk 0:00:03.8]} 99...
Qxd7+ {[%clk 0:00:05.6]} 100. Kxd7 {[%clk 0:00:04.7]} 1/2-1/2

[Event "Early-Titled-Tuesday-Blitz-October-24-2023"]
[Site "Chess.com"]
[Date "2023.10.24"]
[Round "10"]
[White "CristianS27"]
[Black "Fonsofan"]
[Result "1-0"]
[WhiteElo "2572"]
[BlackElo "2725"]
[TimeControl "180+1"]
[EndTime "9:48:42 PDT"]
[Termination "CristianS27 won by resignation"]

1. e4 {[%clk 0:03:00.9]} 1... c6 {[%clk 0:02:54.4]} 2. d4 {[%clk 0:02:48.3]}
2... d5 {[%clk 0:02:55.3]} 3. exd5 {[%clk 0:02:49.1]} 3... cxd5 {[%clk
0:02:55.2]} 4. c4 {[%clk 0:02:50]} 4... Nf6 {[%clk 0:02:55.4]} 5. Nc3 {[%clk
0:02:50.9]} 5... e6 {[%clk 0:02:53.4]} 6. c5 {[%clk 0:02:50.8]} 6... b6 {[%clk
0:02:52.6]} 7. b4 {[%clk 0:02:50.4]} 7... a5 {[%clk 0:02:52.6]} 8. Na4 {[%clk
0:02:50.4]} 8... Nfd7 {[%clk 0:02:46.7]} 9. Bb5 {[%clk 0:02:46.6]} 9... Ba6
{[%clk 0:02:17.1]} 10. Qe2 {[%clk 0:02:45.7]} 10... Bxb5 {[%clk 0:01:48.7]} 11.
Qxb5 {[%clk 0:02:46.6]} 11... bxc5 {[%clk 0:01:49.3]} 12. bxc5 {[%clk
0:02:46.4]} 12... Qc8 {[%clk 0:01:49.9]} 13. Nb6 {[%clk 0:02:38.9]} 13... Qa6
{[%clk 0:01:49.4]} 14. Nxa8 {[%clk 0:02:37.9]} 14... Qxa8 {[%clk 0:01:47.3]} 15.
Nf3 {[%clk 0:02:36.5]} 15... f6 {[%clk 0:01:47.4]} 16. O-O {[%clk 0:02:31.6]}
16... Nc6 {[%clk 0:01:47]} 17. Re1 {[%clk 0:02:25.7]} 17... Kf7 {[%clk
0:01:47.4]} 18. Bd2 {[%clk 0:02:23.8]} 18... Be7 {[%clk 0:01:46.3]} 19. Rab1
{[%clk 0:02:22.1]} 19... Rc8 {[%clk 0:01:45.5]} 20. Qb7 {[%clk 0:02:21]} 20...
g5 {[%clk 0:01:41.6]} 21. Qxd7 {[%clk 0:02:08.4]} 1-0

[Event "Early-Titled-Tuesday-Blitz-October-24-2023"]
[Site "Chess.com"]
[Date "2023.10.24"]
[Round "10"]
[White "Rud_Makarian"]
[Black "WhiteKnight2612"]
[Result "1-0"]
[WhiteElo "2977"]
[BlackElo "2830"]
[TimeControl "180+1"]
[EndTime "9:48:45 PDT"]
[Termination "Rud_Makarian won by resignation"]

1. d4 {[%clk 0:02:57.8]} 1... Nf6 {[%clk 0:02:58.6]} 2. c4 {[%clk 0:02:57.3]}
2... c5 {[%clk 0:02:58.8]} 3. d5 {[%clk 0:02:55.5]} 3... e6 {[%clk 0:02:59.4]}
4. Nc3 {[%clk 0:02:51.2]} 4... exd5 {[%clk 0:02:59.6]} 5. cxd5 {[%clk
0:02:52.1]} 5... d6 {[%clk 0:02:59.9]} 6. e4 {[%clk 0:02:52.6]} 6... g6 {[%clk
0:03:00]} 7. h3 {[%clk 0:02:52.6]} 7... Bg7 {[%clk 0:03:00.1]} 8. Nf3 {[%clk
0:02:53.3]} 8... O-O {[%clk 0:03:00.5]} 9. Bd3 {[%clk 0:02:54.1]} 9... b5 {[%clk
0:02:59.6]} 10. Nxb5 {[%clk 0:02:52.9]} 10... Nxe4 {[%clk 0:02:51.9]} 11. Bxe4
{[%clk 0:02:53.8]} 11... Re8 {[%clk 0:02:52.4]} 12. Nd2 {[%clk 0:02:25.8]} 12...
f5 {[%clk 0:02:43.6]} 13. O-O {[%clk 0:02:25.2]} 13... fxe4 {[%clk 0:02:43.5]}
14. Nc4 {[%clk 0:02:24.8]} 14... Qh4 {[%clk 0:02:27.3]} 15. Nbxd6 {[%clk
0:02:14.9]} 15... Bxh3 {[%clk 0:02:03.2]} 16. gxh3 {[%clk 0:02:10.4]} 16... Bd4
{[%clk 0:01:33.5]} 17. Qg4 {[%clk 0:02:08.8]} 1-0

[Event "Early-Titled-Tuesday-Blitz-October-24-2023"]
[Site "Chess.com"]
[Date "2023.10.24"]
[Round "10"]
[White "ATM622"]
[Black "gpsji27"]
[Result "1-0"]
[WhiteElo "2422"]
[BlackElo "2294"]
[TimeControl "180+1"]
[EndTime "9:48:55 PDT"]
[Termination "ATM622 won by resignation"]

1. d4 {[%clk 0:03:00.9]} 1... d5 {[%clk 0:02:59.9]} 2. c4 {[%clk 0:03:00.1]}
2... e6 {[%clk 0:03:00]} 3. Nf3 {[%clk 0:02:59.5]} 3... Nf6 {[%clk 0:03:00.6]}
4. g3 {[%clk 0:02:59.3]} 4... Be7 {[%clk 0:02:59.6]} 5. Bg2 {[%clk 0:02:59]}
5... O-O {[%clk 0:03:00.3]} 6. O-O {[%clk 0:02:58.7]} 6... dxc4 {[%clk 0:03:01]}
7. Ne5 {[%clk 0:02:58.5]} 7... Nc6 {[%clk 0:03:00.7]} 8. Bxc6 {[%clk 0:02:56.5]}
8... bxc6 {[%clk 0:03:01.6]} 9. Nxc6 {[%clk 0:02:57.4]} 9... Qe8 {[%clk
0:03:01.6]} 10. Nxe7+ {[%clk 0:02:56.9]} 10... Qxe7 {[%clk 0:03:02.5]} 11. Qc2
{[%clk 0:02:57.8]} 11... c5 {[%clk 0:03:01.6]} 12. Qxc4 {[%clk 0:02:52.9]} 12...
cxd4 {[%clk 0:03:00]} 13. Qxd4 {[%clk 0:02:53.8]} 13... e5 {[%clk 0:03:00]} 14.
Qh4 {[%clk 0:02:53.3]} 14... Ba6 {[%clk 0:02:56.9]} 15. Nc3 {[%clk 0:02:52.2]}
15... Rab8 {[%clk 0:02:55.6]} 16. Bg5 {[%clk 0:02:49.2]} 16... Qe6 {[%clk
0:02:31.4]} 17. Bxf6 {[%clk 0:02:48.1]} 17... Qxf6 {[%clk 0:02:32.3]} 18. Qxf6
{[%clk 0:02:47.9]} 18... gxf6 {[%clk 0:02:33.2]} 19. b3 {[%clk 0:02:45.2]} 19...
Rfc8 {[%clk 0:02:32.9]} 20. Nd5 {[%clk 0:02:44.9]} 20... Kg7 {[%clk 0:02:31.5]}
21. Rfe1 {[%clk 0:02:43.6]} 21... Rd8 {[%clk 0:02:31.4]} 22. Rad1 {[%clk
0:02:41.6]} 22... Rb7 {[%clk 0:02:27.7]} 23. e4 {[%clk 0:02:40]} 23... Rbd7
{[%clk 0:02:27.2]} 24. f4 {[%clk 0:02:36.1]} 24... exf4 {[%clk 0:02:24.4]} 25.
gxf4 {[%clk 0:02:36.3]} 25... f5 {[%clk 0:02:25]} 26. Ne3 {[%clk 0:02:34.3]}
26... Rxd1 {[%clk 0:02:23.5]} 27. Rxd1 {[%clk 0:02:33.8]} 27... Rxd1+ {[%clk
0:02:23.4]} 28. Nxd1 {[%clk 0:02:33.6]} 28... fxe4 {[%clk 0:02:24.3]} 29. Kf2
{[%clk 0:02:31.3]} 29... f5 {[%clk 0:02:22.8]} 30. Ke3 {[%clk 0:02:30.1]} 30...
Kf6 {[%clk 0:02:23.3]} 31. Kd4 {[%clk 0:02:29.1]} 31... Bd3 {[%clk 0:02:23.8]}
32. Ne3 {[%clk 0:02:27.2]} 32... Ke6 {[%clk 0:02:22.5]} 33. Kc5 {[%clk
0:02:25.9]} 33... Bb1 {[%clk 0:02:17.8]} 34. a4 {[%clk 0:02:25.7]} 34... Bd3
{[%clk 0:02:18]} 35. b4 {[%clk 0:02:22.3]} 35... Kf6 {[%clk 0:02:15.2]} 36. b5
{[%clk 0:02:21.6]} 36... Kg6 {[%clk 0:02:10.3]} 37. Kc6 {[%clk 0:02:21.6]} 37...
Kh5 {[%clk 0:02:09.7]} 38. Kb7 {[%clk 0:02:21.3]} 38... Kh4 {[%clk 0:02:10]} 39.
Kxa7 {[%clk 0:02:21.4]} 1-0

[Event "Early-Titled-Tuesday-Blitz-October-24-2023"]
[Site "Chess.com"]
[Date "2023.10.24"]
[Round "10"]
[White "ExchangeAB"]
[Black "Alexchess1984"]
[Result "0-1"]
[WhiteElo "2550"]
[BlackElo "2702"]
[TimeControl "180+1"]
[EndTime "9:49:04 PDT"]
[Termination "Alexchess1984 won by resignation"]

1. d4 {[%clk 0:03:00.9]} 1... Nf6 {[%clk 0:02:57.9]} 2. Nc3 {[%clk 0:03:01.2]}
2... d5 {[%clk 0:02:49.8]} 3. Bf4 {[%clk 0:02:55.6]} 3... e6 {[%clk 0:02:48.5]}
4. e3 {[%clk 0:02:55.7]} 4... Bd6 {[%clk 0:02:45.7]} 5. Bd3 {[%clk 0:02:54.4]}
5... O-O {[%clk 0:02:44.7]} 6. g4 {[%clk 0:02:52.7]} 6... Bxf4 {[%clk
0:02:31.3]} 7. exf4 {[%clk 0:02:53.6]} 7... c5 {[%clk 0:02:31.5]} 8. g5 {[%clk
0:02:51.9]} 8... Nfd7 {[%clk 0:02:25.6]} 9. Nce2 {[%clk 0:02:45.1]} 9... c4
{[%clk 0:02:25]} 10. Bxh7+ {[%clk 0:02:44.7]} 10... Kxh7 {[%clk 0:02:24.4]} 11.
Ng3 {[%clk 0:02:45.5]} 11... Kg8 {[%clk 0:02:08.6]} 12. h4 {[%clk 0:02:44.5]}
12... Qc7 {[%clk 0:02:08.4]} 13. Qg4 {[%clk 0:02:42.7]} 13... e5 {[%clk
0:01:59.4]} 14. f5 {[%clk 0:02:39.4]} 14... exd4 {[%clk 0:01:59.3]} 15. f4
{[%clk 0:02:35.6]} 15... Re8+ {[%clk 0:01:58.7]} 16. Kf1 {[%clk 0:02:33.8]}
16... d3 {[%clk 0:01:52.4]} 17. h5 {[%clk 0:02:31.2]} 17... Nc6 {[%clk
0:01:16.2]} 18. g6 {[%clk 0:02:30.2]} 18... Nf6 {[%clk 0:01:16]} 19. Qg5 {[%clk
0:02:28.5]} 19... Ne4 {[%clk 0:01:15.7]} 20. Nxe4 {[%clk 0:02:28.4]} 20... Rxe4
{[%clk 0:01:16.6]} 21. Nh3 {[%clk 0:02:26.1]} 21... f6 {[%clk 0:01:14.4]} 22.
Qh4 {[%clk 0:02:23]} 22... Bxf5 {[%clk 0:01:14.6]} 23. h6 {[%clk 0:02:22.8]}
23... Bxh3+ {[%clk 0:01:15]} 24. Qxh3 {[%clk 0:02:21.3]} 24... Qxf4+ {[%clk
0:01:15.3]} 0-1